fUSD/lending_fUSD_20240524
["ID","MTS","AMOUNT","RATE_DAILY","PERIOD"]
[327823470,1716513039673,-2659.58786084,0.0003399,2]
[327823471,1716513039683,-150.0,0.0003399,2]
[327823472,1716513039693,-417.20833342,0.00033992,4]
[327823473,1716513039703,-649.85151739,0.00033992,4]
[327823474,1716513039712,-6333.33,0.00033992,6]
[327823475,1716513039721,-238.28398159,0.00033992,4]
[327823476,1716513039731,-300.0,0.00033993,10]
[327823477,1716513039741,-300.0,0.00033993,10]
[327823478,1716513039751,-300.0,0.00033993,10]
[327823479,1716513039760,-318.53276753,0.00033993,10]
[327823480,1716513039769,-301.66187022,0.00033993,2]
[327823481,1716513039779,-530.74,0.00033993,2]
[327823482,1716513039788,-530.74,0.00033993,2]
[327823483,1716513039798,-530.74,0.00033993,2]
[327823484,1716513039808,-530.74,0.00033993,2]
[327823485,1716513039818,-530.74,0.00033993,2]
[327823486,1716513039827,-530.74,0.00033993,2]
[327823487,1716513039837,-530.74,0.00033993,2]
[327823488,1716513039846,-530.74,0.00033993,2]
[327823489,1716513039856,-530.74,0.00033993,2]
[327823490,1716513039865,-530.74,0.00033993,2]
[327823491,1716513039875,-530.74,0.00033993,2]
[327823492,1716513039884,-530.74,0.00033993,2]
[327823493,1716513039894,-530.74,0.00033993,2]
[327823494,1716513039903,-530.74,0.00033993,2]
[327823495,1716513039912,-530.74,0.00033993,2]
[327823496,1716513039922,-530.74,0.00033993,2]
[327823497,1716513039932,-530.74,0.00033993,2]
[327823498,1716513039941,-530.74,0.00033993,2]
[327823499,1716513039951,-530.74,0.00033993,2]
[327823500,1716513039961,-530.74,0.00033993,2]
[327823501,1716513039970,-530.74,0.00033993,2]
[327823502,1716513039981,-530.74,0.00033993,2]
[327823503,1716513039990,-530.76540983,0.00033993,2]
[327823504,1716513040000,-164.53110676,0.00033994,2]
[327823505,1716513040009,-1611.57695351,0.00033994,4]
[327823506,1716513040020,-1360.69914021,0.00033994,4]
[327823507,1716513040031,-404.57811988,0.00033994,4]
[327823508,1716513040041,-615.61983865,0.00033998,6]
[327823509,1716513040050,-6061.50594521,0.00033999,6]
[327823510,1716513040064,-271.82405479,0.00033999,6]
[327823511,1716513040073,-160.0,0.00034,7]
[327823512,1716513040083,-3597.68,0.00034,2]
[327823513,1716513040092,-3597.68,0.00034,2]
[327823514,1716513040104,-149.1877613,0.00034,2]
[327823515,1716513040117,-3448.4922387,0.00034,2]
[327823516,1716513040126,-3597.68,0.00034,2]
[327823517,1716513040136,-3464.47220129,0.00034,2]
[327823518,1716513040147,-133.20779871,0.00034,2]
[327823519,1716513040156,-2592.72,0.00034,2]
[327823520,1716513040166,-469.28827732,0.00034,2]
[327823528,1716513041316,-3128.39172268,0.00034,2]
[327823529,1716513041327,-444.96728532,0.00034,2]
[327823530,1716513041340,-360.92182781,0.00034,2]
[327823531,1716513041354,-1634.60616218,0.00034,2]
[327823532,1716513041366,-152.22472469,0.00034,2]
[327823533,1716513041377,-123.77527531,0.00034,2]
[327823534,1716513041389,-2468.94472469,0.00034,2]
[327823535,1716513041400,-3597.68,0.00034,2]
[327823536,1716513041410,-1676.87457765,0.00034,2]
[327823537,1716513041423,-1920.80542235,0.00034,2]
[327823538,1716513041434,-2592.72,0.00034,2]
[327823539,1716513041443,-3589.03270713,0.00034,2]
[327823540,1716513041458,-8.64729287,0.00034,2]
[327823541,1716513041468,-346.08058799,0.00034,2]
[327823542,1716513041479,-348.49967892,0.00034,2]
[327823543,1716513041491,-1898.13973309,0.00034,2]
[327823544,1716513041500,-634.78426027,0.00034,2]
[327823545,1716513041530,-2962.89573973,0.00034,2]
[327823546,1716513041540,-2592.72,0.00034,2]
[327823547,1716513041551,-3597.68,0.00034,2]
[327823548,1716513041561,-2352.54857167,0.00034,2]
[327823549,1716513041573,-240.17142833,0.00034,2]
[327823550,1716513041583,-3597.68,0.00034,2]
[327823551,1716513041593,-973.37016144,0.00034,2]
[327823552,1716513041605,-321.86778355,0.00034,2]
[327823560,1716513043663,-281.07575007,0.00034,2]
[327823561,1716513043677,-1016.40630494,0.00034,2]
[327823562,1716513043687,-950.24446568,0.00034,2]
[327823563,1716513043773,-348.9435,0.00033939,2]
[327823564,1716513043784,-2647.43553432,0.00034,2]
[327823565,1716513043794,-2592.72,0.00034,2]
[327823566,1716513043804,-2592.72,0.00034,2]
[327823567,1716513043814,-3597.68,0.00034,2]
[327823568,1716513043823,-3597.68,0.00034,2]
[327823569,1716513043832,-2592.72,0.00034,2]
[327823570,1716513043842,-574.80021568,0.00034,2]
[327823571,1716513043856,-2017.91978432,0.00034,2]
[327823572,1716513043865,-1003.15458022,0.00034,2]
[327823573,1716513043878,-757.45058583,0.00034,2]
[327823574,1716513043890,-409.79455518,0.00034,2]
[327823575,1716513043903,-317.58000002,0.00034,2]
[327823576,1716513043916,-1109.70027875,0.00034,2]
[327823577,1716513043926,-1111.33965125,0.00034,2]
[327823578,1716513043940,-865.00999,0.00034,2]
[327823579,1716513043953,-616.37035875,0.00034,2]
[327823580,1716513043964,-1299.90572078,0.00034,2]
[327823581,1716513043974,-259.81768672,0.00034,2]
[327823582,1716513043987,-2037.9565925,0.00034,2]
[327823583,1716513043996,-2656.65988492,0.00034,2]
[327823584,1716513044009,-941.02011508,0.00034,2]
[327823585,1716513044022,-2592.72,0.00034,2]
[327823586,1716513044034,-3166.75988492,0.00034,2]
[327823587,1716513044046,-430.92011508,0.00034,2]
[327823588,1716513044056,-1037.87513145,0.00034,2]
[327823589,1716513044070,-1554.84486855,0.00034,2]
[327823590,1716513044079,-3597.68,0.00034,2]
[327823591,1716513044089,-2592.72,0.00034,2]
[327823592,1716513044101,-2592.72,0.00034,2]
[327823593,1716513044110,-2592.72,0.00034,2]
[327823594,1716513044120,-2592.72,0.00034,2]
[327823595,1716513044129,-2592.72,0.00034,2]
[327823596,1716513044139,-189.0,0.00034,23]
[327823597,1716513044149,-717.36,0.00034,7]
[327823598,1716513044163,-150.0,0.00034,8]
[327823599,1716513044173,-150.81,0.00034029,2]
[327823600,1716513044183,-6333.33,0.00034038,6]
[327823601,1716513044193,-6333.33,0.00034038,6]
[327823602,1716513044203,-6333.33,0.00034038,6]
[327823604,1716513044213,-6333.33,0.00034038,6]
[327823606,1716513044223,-6333.33,0.00034038,6]
[327823608,1716513044236,-6333.33,0.00034038,6]
[327823610,1716513044245,-6333.33,0.00034038,6]
[327823611,1716513044255,-6333.33,0.00034038,6]
[327823612,1716513044264,-6333.33,0.00034038,6]
[327823613,1716513044274,-6333.33,0.00034038,6]
[327823614,1716513044284,-6333.33,0.00034038,6]
[327823615,1716513044295,-6333.33,0.00034038,6]
[327823616,1716513044306,-6333.33,0.00034038,6]
[327823617,1716513044316,-6333.33,0.00034038,6]
[327823618,1716513044326,-6333.33,0.00034038,6]
[327823619,1716513044337,-6333.33,0.00034038,6]
[327823620,1716513044347,-6333.33,0.00034038,6]
[327823621,1716513044358,-6333.33,0.00034038,6]
[327823622,1716513044369,-6333.33,0.00034038,6]
[327823623,1716513044380,-6333.33,0.00034038,6]
[327823624,1716513044390,-6333.33,0.00034038,6]
[327823625,1716513044399,-6333.41,0.00034038,6]
[327823626,1716513044409,-300.0,0.00034038,10]
[327823627,1716513044420,-300.0,0.00034038,10]
[327823628,1716513044429,-300.0,0.00034038,10]
[327823629,1716513044439,-300.0,0.00034038,10]
[327823630,1716513044448,-300.0,0.00034038,10]
[327823631,1716513044458,-300.0,0.00034038,10]
[327823632,1716513044467,-300.0,0.00034038,10]
[327823633,1716513044477,-301.0417142,0.00034038,10]
[327823634,1716513044490,-300.0,0.00034038,10]
[327823635,1716513044500,-300.0,0.00034038,10]
[327823636,1716513044509,-300.0,0.00034038,10]
[327823637,1716513044519,-300.0,0.00034038,10]
[327823638,1716513044529,-300.0,0.00034038,10]
[327823639,1716513044539,-300.0,0.00034038,10]
[327823640,1716513044548,-300.0,0.00034038,10]
[327823641,1716513044558,-300.0,0.00034038,10]
[327823642,1716513044568,-300.0,0.00034038,10]
[327823643,1716513044578,-300.0,0.00034038,10]
[327823644,1716513044588,-300.0,0.00034038,10]
[327823645,1716513044599,-300.0,0.00034038,10]
[327823646,1716513044609,-300.0,0.00034038,10]
[327823647,1716513044620,-300.0,0.00034038,10]
[327823648,1716513044630,-411.0,0.00034039,5]
[327823649,1716513044640,-40937.017133,0.00034039,15]
[327823650,1716513044651,-3495.40853407,0.00034039,2]
[327823651,1716513044660,-34847.35289595,0.00034039,2]
[327823652,1716513044671,-550.0,0.00034039,2]
[327823653,1716513044680,-984.71544515,0.00034039,2]
[327823654,1716513044690,-10457.01358162,0.00034039,2]
[327823655,1716513044700,-165547.23181807,0.00034039,2]
[327823656,1716513044711,-14600.55097007,0.00034039,2]
[327823657,1716513044721,-6000.0,0.00034039,2]
[327823658,1716513044733,-1009.45448289,0.00034039,2]
[327823659,1716513044743,-10365.06089309,0.00034039,2]
[327823660,1716513044752,-14294.37554913,0.00034039,2]
[327823661,1716513044762,-550.20966705,0.00034039,2]
[327823662,1716513044773,-150.0,0.00034039,2]
[327823663,1716513044783,-639.17130454,0.00034039,2]
[327823664,1716513044792,-7152.3337056,0.00034039,2]
[327823665,1716513044803,-612.0451683,0.00034039,2]
[327823666,1716513044812,-209.8619459,0.00034039,2]
[327823667,1716513044822,-149929.20402466,0.00034039,2]
[327823668,1716513044832,-439.21861885,0.00034039,2]
[327823669,1716513044841,-1042.75706994,0.00034039,2]
[327823670,1716513044852,-20763.11075449,0.00034039,2]
[327823671,1716513044863,-2500.0,0.00034039,2]
[327823672,1716513044874,-566.1275093,0.00034039,2]
[327823673,1716513044884,-2325.57042769,0.00034039,2]
[327823674,1716513044895,-36389.10245776,0.00034039,2]
[327823675,1716513044904,-235.19393214,0.00034039,2]
[327823676,1716513044914,-526.65834331,0.00034039,2]
[327823677,1716513044923,-408036.39200981,0.00034039,2]
[327823678,1716513044933,-10254.23245433,0.00034039,2]
[327823679,1716513044943,-891.5407326,0.00034039,2]
[327823680,1716513044953,-12749.84495131,0.00034039,2]
[327823681,1716513044967,-14199.9547268,0.00034039,2]
[327823682,1716513044977,-13732.15096961,0.00034039,2]
[327823683,1716513044988,-1008.97592486,0.00034039,2]
[327823684,1716513044997,-5019.51768534,0.00034039,2]
[327823685,1716513045008,-150.0,0.00034039,2]
[327823686,1716513045018,-294459.60474819,0.00034039,25]
[327823687,1716513045035,-935.21484251,0.00034039,25]
[327823688,1716513045048,-1401.6000012,0.00034039,25]
[327823689,1716513045060,-26208.36297028,0.00034039,25]
[327823690,1716513045072,-515.98109485,0.00034039,15]
[327823691,1716513045082,-6918.30412814,0.00034039,15]
[327823692,1716513045094,-595.92470688,0.00034039,15]
[327823693,1716513045106,-5.68700697,0.00034039,9]
[327823694,1716513045119,-1202.81299303,0.00034039,9]
[327823695,1716513045130,-1053.88,0.00034039,8]
[327823696,1716513045141,-5900.81453532,0.00034039,2]
[327823697,1716513045154,-362.20295,0.00034039,2]
[327823698,1716513045167,-290.72378378,0.00034039,2]
[327823699,1716513045177,-153.81182297,0.00034039,10]
[327823700,1716513045187,-805.74977186,0.00034039,2]
[327823701,1716513045198,-400.0,0.00034039,2]
[327823702,1716513045210,-337.65,0.00034039,2]
[327823703,1716513045231,-5716.19572205,0.00034039,2]
[327823704,1716513045240,-225.1,0.00034039,2]
[327823705,1716513045250,-348.21952912,0.00034039,2]
[327823706,1716513045259,-1851.6768729,0.00034039,2]
[327823707,1716513045270,-461.81999999,0.00034039,2]
[327823708,1716513045282,-1819.99999776,0.00034039,2]
[327823709,1716513045293,-4168.52547257,0.00034039,2]
[327823710,1716513045304,-290.77689149,0.00034039,2]
[327823711,1716513045316,-1088.3299892,0.00034039,2]
[327823712,1716513045327,-7961.80394415,0.00034039,2]
[327823713,1716513045338,-555.29,0.00034039,2]
[327823714,1716513045349,-1179.07678277,0.00034039,2]
[327823715,1716513045361,-3899.36212334,0.00034039,2]
[327823716,1716513045371,-1905.05561566,0.00034039,15]
[327823717,1716513045382,-509.999985,0.00034039,15]
[327823718,1716513045393,-767.17250878,0.00034039,15]
[327823719,1716513045405,-1906.18047304,0.00034039,15]
[327823720,1716513045416,-250.5,0.00034039,15]
[327823721,1716513045428,-848.067256,0.00034039,15]
[327823722,1716513045440,-1010.8390311,0.00034039,15]
[327823723,1716513046685,-563.41338732,0.00034037,4]
[327823724,1716513046696,-1556.7999962,0.00034037,4]
[327823725,1716513046708,-605.50432414,0.00034037,4]
[327823726,1716513046720,-291.2772942,0.00034037,4]
[327823727,1716513046800,-994.19092379,0.00034037,4]
[327823728,1716513046813,-351.22370167,0.00034037,4]
[327823729,1716513046823,-148.77629833,0.00034039,7]
[327823730,1716513046835,-2.22370167,0.00034039,7]
[327823731,1716513046845,-151.0,0.00034039,7]
[327823732,1716513046855,-151.0,0.00034039,7]
[327823733,1716513046865,-5.77846833,0.00034039,7]
[327823734,1716513046878,-145.22153167,0.00034039,7]
[327823735,1716513046887,-151.0,0.00034039,7]
[327823736,1716513046897,-151.0,0.00034039,7]
[327823737,1716513046907,-1138.37618442,0.00034039,15]
[327823738,1716513046916,-4813.71453632,0.00034039,7]
[327823739,1716513046926,-7607.39567627,0.00034039,7]
[327823740,1716513046936,-1251.60619293,0.00034039,7]
[327823741,1716513046948,-956.83183926,0.00034039,7]
[327823742,1716513046960,-3352.69443134,0.00034039,7]
[327823743,1716513046972,-24730.10590726,0.00034039,7]
[327823744,1716513046983,-10787.8149512,0.00034039,7]
[327823745,1716513046994,-4100.0,0.00034039,7]
[327823746,1716513047006,-2678.34680619,0.00034039,7]
[327823747,1716513047042,-3462.62223728,0.00034039,7]
[327823754,1716513048273,289.02345992,0.00013973,2]
[327823763,1716513451248,151.83,0.00013973,2]
[327823772,1716514107030,158.98,0.00030156,120]
[327823773,1716514138229,152.19,0.0002992,30]
[327823774,1716514232047,-338.36,0.000219,2]
[327823775,1716514232060,-1430.64,0.000219,2]
[327823776,1716514232069,-3178.983202,0.000228,2]
[327823777,1716514232078,-4768.474804,0.00023,2]
[327823780,1716514232087,-5353.59122862,0.00023088,2]
[327823783,1716514232099,-660.72493257,0.00023088,2]
[327823784,1716514232110,-22939.96552015,0.00023088,2]
[327823785,1716514232358,-522.13920169,0.00023088,2]
[327823786,1716514232369,-3505.4815812,0.00023088,2]
[327823787,1716514232381,-933.49206678,0.00023088,2]
[327823790,1716514238085,-414.0846342,0.00023088,2]
[327823791,1716514238097,-394.69271272,0.00023088,2]
[327823793,1716514238108,-4912.170635,0.00023088,2]
[327823794,1716514238119,-8567.34463145,0.00023088,2]
[327823795,1716514238128,-6357.966405,0.000235,2]
[327823796,1716514238137,-7947.458007,0.000238,2]
[327823797,1716514238147,-11126.441209,0.000239,2]
[327823798,1716514238156,-12715.932811,0.0002395,2]
[327823799,1716514238166,-1199.47370397,0.00025,2]
[327823800,1716514238176,-164.0,0.00025,2]
[327823801,1716514238185,-5000.0,0.00025,7]
[327823802,1716514238195,-927.04584446,0.00025999,2]
[327823803,1716514238204,-12514.25897369,0.00026,5]
[327823804,1716514238216,-1681.1614886,0.00026,5]
[327823805,1716514238227,-9251.76909848,0.00026,5]
[327823806,1716514238237,-158.0,0.000267,5]
[327823807,1716514238247,-805.18519156,0.0002739,2]
[327823808,1716514238256,-151.83,0.00027641,2]
[327823809,1716514238266,-194.54,0.0002858,2]
[327823810,1716514238278,-152.73750919,0.00028666,2]
[327823811,1716514238287,-189.37,0.00029566,2]
[327823812,1716514238296,-1210.87556409,0.0002992,2]
[327823813,1716514238305,-728.21033625,0.0002992,14]
[327823814,1716514238314,-155.0,0.0003,2]
[327823815,1716514238323,-4948.4,0.0003,2]
[327823816,1716514238343,-996.34,0.0003,2]
[327823817,1716514238352,-23832.89977352,0.00030192,4]
[327823818,1716514238362,-19407.89719547,0.00030192,4]
[327823819,1716514238372,-5690.83016937,0.00030193,2]
[327823820,1716514238381,-1000.0,0.00030194,2]
[327823821,1716514238391,-250.0,0.00030344,2]
[327823822,1716514238400,-250.0,0.00030374,2]
[327823823,1716514238410,-996.34,0.0003081,2]
[327823824,1716514238425,-194.54,0.00030844,2]
[327823825,1716514238435,-10000.0,0.0003088,2]
[327823826,1716514238444,-250.0,0.00031469,2]
[327823827,1716514238454,-170.73,0.0003161,3]
[327823828,1716514238466,-996.34,0.0003162,2]
[327823829,1716514238475,-333.64612024,0.00032429,4]
[327823830,1716514238485,-996.34,0.0003243,2]
[327823831,1716514238494,-194.54,0.00033108,2]
[327823832,1716514238506,-996.34,0.0003324,2]
[327823833,1716514238516,-259.66612395,0.000334,2]
[327823834,1716514238527,-421.9125,0.000334,2]
[327823835,1716514238537,-208.0,0.000335,2]
[327823836,1716514238547,-1567.94,0.000335,2]
[327823837,1716514238556,-2241.07,0.000335,2]
[327823838,1716514238568,-1567.94,0.000335,2]
[327823839,1716514238577,-2241.07,0.000335,2]
[327823840,1716514238587,-1567.94,0.000335,2]
[327823841,1716514238598,-2241.07,0.000335,2]
[327823842,1716514238609,-1567.94,0.000335,2]
[327823843,1716514238619,-2241.07,0.000335,2]
[327823844,1716514238629,-1567.94,0.000335,2]
[327823845,1716514238639,-2241.07,0.000335,2]
[327823846,1716514238648,-1567.94,0.000335,2]
[327823847,1716514238657,-2241.07,0.000335,2]
[327823848,1716514238666,-1567.94,0.000335,2]
[327823849,1716514238676,-1567.94,0.000335,2]
[327823850,1716514238685,-2241.07,0.000335,2]
[327823851,1716514238695,-1567.94,0.000335,2]
[327823852,1716514238705,-2241.07,0.000335,2]
[327823853,1716514238714,-1567.94,0.000335,2]
[327823854,1716514238724,-2241.07,0.000335,2]
[327823855,1716514238734,-1567.94,0.000335,2]
[327823856,1716514238743,-2241.07,0.000335,2]
[327823857,1716514238753,-1567.94,0.000335,2]
[327823858,1716514238762,-2241.07,0.000335,2]
[327823859,1716514238774,-2241.07,0.000335,2]
[327823860,1716514238784,-1567.94,0.000335,2]
[327823861,1716514238794,-2241.07,0.000335,2]
[327823862,1716514238804,-2241.07,0.000335,2]
[327823863,1716514238814,-1567.94,0.000335,2]
[327823864,1716514238823,-2241.07,0.000335,2]
[327823865,1716514238834,-1567.94,0.000335,2]
[327823866,1716514238844,-2241.07,0.000335,2]
[327823867,1716514238854,-1567.94,0.000335,2]
[327823868,1716514238864,-2241.07,0.000335,2]
[327823869,1716514238874,-1567.94,0.000335,2]
[327823870,1716514238883,-2241.07,0.000335,2]
[327823871,1716514238893,-1567.94,0.000335,2]
[327823872,1716514238903,-2241.07,0.000335,2]
[327823873,1716514238913,-1567.94,0.000335,2]
[327823874,1716514238923,-2241.07,0.000335,2]
[327823875,1716514238932,-1567.94,0.000335,2]
[327823876,1716514238942,-300.23,0.00033567,2]
[327823877,1716514238952,-259.66612387,0.00033622,2]
[327823878,1716514238961,-500.0,0.00033698,6]
[327823879,1716514238975,-553.56012552,0.00033698,6]
[327823880,1716514238984,-524.53749015,0.00033698,6]
[327823881,1716514238994,-620.06215489,0.00033698,6]
[327823882,1716514239004,-500.0,0.00033698,6]
[327823883,1716514239014,-529.32132586,0.00033698,6]
[327823884,1716514239025,-222.39508844,0.00033727,3]
[327823885,1716514239035,-200.0,0.00033781,20]
[327823886,1716514239045,-500.0,0.00033781,10]
[327823887,1716514239055,-259.66612387,0.00033844,2]
[327823888,1716514239065,-150.0,0.00033944,2]
[327823889,1716514239075,-1000.0,0.00033968,2]
[327823890,1716514239086,-299.4216033,0.00033991,6]
[327823891,1716514239096,-500.0,0.00033998,6]
[327823892,1716514239106,-500.0,0.00033999,6]
[327823893,1716514239116,-500.0,0.00033999,6]
[327823894,1716514239126,-500.0,0.00033999,6]
[327823895,1716514239136,-500.0,0.00033999,6]
[327823896,1716514239146,-500.0,0.00033999,6]
[327823897,1716514239156,-500.0,0.00033999,6]
[327823898,1716514239166,-500.0,0.00033999,6]
[327823899,1716514239176,-500.0,0.00033999,6]
[327823900,1716514239186,-618.9,0.00033999,6]
[327823901,1716514239196,-500.0,0.00033999,6]
[327823902,1716514239207,-500.0,0.00033999,6]
[327823903,1716514239217,-500.0,0.00033999,6]
[327823904,1716514239226,-500.0,0.00033999,6]
[327823905,1716514239237,-500.0,0.00033999,6]
[327823906,1716514239246,-618.42,0.00033999,6]
[327823907,1716514239257,-500.0,0.00033999,6]
[327823908,1716514239267,-500.0,0.00033999,6]
[327823909,1716514239278,-500.0,0.00033999,6]
[327823910,1716514239288,-500.0,0.00033999,6]
[327823911,1716514239298,-301.66704135,0.00033999,6]
[327823912,1716514239308,-168.86058256,0.00033999,6]
[327823913,1716514239318,-415.85994065,0.00033999,6]
[327823914,1716514239328,-179.9779675,0.00033999,6]
[327823915,1716514239339,-2241.07,0.00034,2]
[327823916,1716514239349,-1567.94,0.00034,2]
[327823917,1716514239360,-1567.94,0.00034,2]
[327823918,1716514239370,-2241.07,0.00034,2]
[327823919,1716514239381,-1567.94,0.00034,2]
[327823920,1716514239391,-2241.07,0.00034,2]
[327823921,1716514239401,-1567.94,0.00034,2]
[327823922,1716514239411,-2241.07,0.00034,2]
[327823923,1716514239423,-1567.94,0.00034,2]
[327823924,1716514239437,-2241.07,0.00034,2]
[327823925,1716514239448,-1567.94,0.00034,2]
[327823926,1716514239458,-2241.07,0.00034,2]
[327823927,1716514239469,-1567.94,0.00034,2]
[327823928,1716514239479,-2241.07,0.00034,2]
[327823929,1716514239489,-1567.94,0.00034,2]
[327823930,1716514239498,-2241.07,0.00034,2]
[327823931,1716514239512,-1567.94,0.00034,2]
[327823932,1716514239524,-2241.07,0.00034,2]
[327823933,1716514239534,-1567.94,0.00034,2]
[327823934,1716514239545,-2241.07,0.00034,2]
[327823935,1716514239555,-1567.94,0.00034,2]
[327823936,1716514239566,-2241.07,0.00034,2]
[327823937,1716514239575,-1567.94,0.00034,2]
[327823938,1716514239586,-2241.07,0.00034,2]
[327823939,1716514239596,-1567.94,0.00034,2]
[327823940,1716514239607,-2241.07,0.00034,2]
[327823941,1716514239616,-1567.94,0.00034,2]
[327823942,1716514239627,-2241.07,0.00034,2]
[327823943,1716514239637,-1567.94,0.00034,2]
[327823944,1716514239648,-2241.07,0.00034,2]
[327823945,1716514239657,-1567.94,0.00034,2]
[327823946,1716514239667,-1567.94,0.00034,2]
[327823947,1716514239677,-2241.07,0.00034,2]
[327823948,1716514239687,-2241.07,0.00034,2]
[327823949,1716514239698,-1567.94,0.00034,2]
[327823950,1716514239709,-1567.94,0.00034,2]
[327823951,1716514239719,-2241.07,0.00034,2]
[327823952,1716514239730,-2241.07,0.00034,2]
[327823953,1716514239740,-1567.94,0.00034,2]
[327823954,1716514239751,-2241.07,0.00034,2]
[327823955,1716514239761,-160.0,0.00034,7]
[327823956,1716514239773,-150.0,0.00034,8]
[327823957,1716514239782,-245.79961264,0.00034,12]
[327823958,1716514239792,-150.0,0.00034019,2]
[327823959,1716514239805,-6058.0,0.0003402,6]
[327823960,1716514239814,-1306.3270451,0.00034029,6]
[327823962,1716514240056,-1518.41981049,0.00034029,6]
[327823963,1716514240067,-600.55491366,0.00034029,2]
[327823964,1716514240078,-423.87339412,0.00034037,4]
[327823965,1716514240088,-206.68381839,0.00034037,8]
[327823966,1716514240099,-283.62154007,0.00034037,2]
[327823967,1716514240110,-300.0,0.00034038,10]
[327823968,1716514240120,-460.66724,0.00034039,2]
[327823969,1716514240131,-996.34,0.0003405,2]
[327823970,1716514240142,-408.51290625,0.00034066,4]
[327823971,1716514240152,-726.68576748,0.00034066,30]
[327823972,1716514240162,-10889.56158641,0.00034066,30]
[327823973,1716514240172,-259.66612387,0.00034067,2]
[327823974,1716514240182,-1052.65065322,0.00034067,2]
[327823975,1716514240193,-33550.88928169,0.00034067,2]
[327823976,1716514240203,-1036.0,0.00034068,5]
[327823977,1716514240213,-150.0,0.00034068,7]
[327823978,1716514240222,-150.0,0.00034068,7]
[327823979,1716514240231,-150.0,0.00034068,7]
[327823980,1716514240240,-150.0,0.00034068,7]
[327823981,1716514240248,-213.33,0.000341,2]
[327823982,1716514240256,-350.11,0.000341,2]
[327823983,1716514240273,-284.80101848,0.00034102,7]
[327823984,1716514240284,-636.45808668,0.00034124,2]
[327823985,1716514240292,-300.0,0.00034127,10]
[327823986,1716514240300,-500.0,0.00034127,6]
[327823987,1716514240308,-440.33,0.00034127,6]
[327823988,1716514240316,-380.82,0.00034127,6]
[327823989,1716514240324,-500.0,0.00034127,6]
[327823990,1716514240332,-500.0,0.00034127,6]
[327823991,1716514240341,-508.68970805,0.00034127,6]
[327823992,1716514240351,-278.94214063,0.00034127,4]
[327823993,1716514240361,-2137.98143174,0.00034127,4]
[327823994,1716514240371,-369.0,0.00034127,5]
[327823995,1716514240381,-300.0,0.00034128,10]
[327823996,1716514240392,-300.0,0.00034128,10]
[327823997,1716514240402,-300.0,0.00034128,10]
[327823998,1716514240412,-300.0,0.00034128,10]
[327823999,1716514240426,-300.0,0.00034128,10]
[327824000,1716514240436,-300.0,0.00034128,10]
[327824001,1716514240446,-300.0,0.00034128,10]
[327824002,1716514240456,-300.0,0.00034128,10]
[327824003,1716514240467,-207.97942169,0.00034128,4]
[327824004,1716514240476,-151.0,0.00034129,7]
[327824005,1716514240486,-294.580406,0.00034129,7]
[327824006,1716514240496,-292.36139633,0.00034129,6]
[327824007,1716514240506,-500.0,0.00034129,6]
[327824008,1716514240516,-167.92,0.00034129,6]
[327824009,1716514240528,-269.45,0.00034129,6]
[327824010,1716514240537,-227.21,0.00034129,6]
[327824011,1716514240547,-188.17660089,0.00034129,6]
[327824012,1716514240558,-375.96704551,0.00034129,6]
[327824013,1716514240568,-31558.56872394,0.00034129,15]
[327824014,1716514240579,-16838.42640907,0.00034129,7]
[327824015,1716514240590,-2334005.73685635,0.00034129,7]
[327824017,1716514240600,-119010.35675578,0.00034129,7]
[327824019,1716514240731,-1152.20284553,0.00034129,7]